[Event "Serbian League 2024"]
[Site "Bajina Basta"]
[Date "2024.10.03"]
[Round "7.35"]
[White "Ratkovic, Milovan"]
[Black "Radovanovic, Dusan"]
[Result "1/2-1/2"]
[ECO "E48"]
[WhiteElo "2429"]
[BlackElo "2293"]
[Annotator "TA"]
[PlyCount "55"]
[EventDate "2024.09.26"]
[EventType "team-tourn"]
[EventCountry "SRB"]
[SourceTitle "playchess.com"]
[Source "ChessBase"]
[SourceQuality "1"]
[TimeControl "40/5400+30:1800+30"]

{[%evp 13,55,-7,-4,-6,-19,0,0,-7,-6,0,34,-27,3,-19,31,34,37,-2,0,-19,-18,-8,-15,-11,-14,-14,32,49,49,34,19,0,0,0,0,0,0,-28,-28,-27,-36,-49,-45,-100]} 1. d4 {[%emt 0:06:38]} Nf6 {[%emt 0:00:07]} 2. c4 {[%emt 0:01:02]} e6 {[%emt 0:00:38]} 3. Nc3 {[%emt 0:00:25]} Bb4 {[%emt 0:00:07]} 4. e3 {[%emt 0:01:22]} O-O {[%emt 0:00:23]} 5. Bd3 {[%emt 0:00:36]} d5 {[%emt 0:00:05]} 6. cxd5 {[%emt 0:00:44]} exd5 {[%emt 0:00:32]} 7. Nge2 {[%emt 0:00:56]} Bd6 {[%emt 0:04:18]} 8. Bd2 {[%emt 0:03:53]} Re8 {[%emt 0:05:41]} 9. Rc1 {[%emt 0:00:51]} a6 {[%emt 0:01:37] Wards off Nb5} 10. Ng3 {[%emt 0:07:30] The position is equal.} Nbd7 {[%emt 0:13:17]} 11. O-O {[%emt 0:03:28]} c5 {[%emt 0:06:59]} 12. Nf5 {[%emt 0:07:54]} (12. Qf3 $14) 12... Bf8 {[%emt 0:00:20]} 13. Qf3 {[%emt 0:02:25]} c4 {[%emt 0:13:14]} (13... g6 $11 14. Ng3 Nb6) 14. Bb1 $14 {[%emt 0:03:04]} Bb4 {[%emt 0:10:09]} 15. Rfd1 {[%emt 0:13:45]} Nf8 {[%emt 0:04:57]} 16. h3 {[%emt 0:19:42]} Bxf5 {[%emt 0:01:30]} 17. Qxf5 {[%emt 0:01:59]} b5 {[%emt 0:13:02]} 18. Ne4 {[%emt 0:13:01]} dxe4 {[%emt 0:05:06]} 19. Bxb4 {[%emt 0:00:40]} Qd5 {[%emt 0:00:23]} (19... g6 $11 20. Qg5 Ne6) 20. Qxd5 {[%emt 0:03:46]} Nxd5 {[%emt 0:00:05]} 21. Bd2 {[%emt 0:00:09]} Rac8 {[%emt 0:02:03]} 22. a3 {[%emt 0:01:01]} Nd7 $1 {[%emt 0:03:28]} 23. f3 {[%emt 0:02:33]} N7f6 {[%emt 0:01:11]} 24. Kf2 {[%emt 0:00:31]} g6 {[%emt 0:02:47]} 25. f4 {[%emt 0:03:14] White is weak on the light squares} h5 {[%emt 0:01:18]} 26. Ke2 {[%emt 0:00:04]} Kg7 {[%emt 0:01:45]} 27. Be1 {[%emt 0:00:33]} Ng8 {[%emt 0:01:05]} 28. Ba2 {[%emt 0:02:44] Weighted Error Value: White=0.11 (very precise) /Black=0.09 (flawless) .  Mistake:       	White=2     	Black=2      Inaccurate:     	White=2     	Black=2      OK:         	White=9     	Black=8      Best:        	White=1     	---        Strong:       	---       	Black=1} (28. Bd2 $15) 1/2-1/2

[Event "Serbian League 2024"]
[Site "Bajina Basta"]
[Date "2024.10.03"]
[Round "7.36"]
[White "Pavlovic, Dejan S"]
[Black "Tadic, Branko"]
[Result "1/2-1/2"]
[ECO "E08"]
[WhiteElo "2350"]
[BlackElo "2424"]
[Annotator "TA"]
[PlyCount "37"]
[EventDate "2024.09.26"]
[EventType "team-tourn"]
[EventCountry "SRB"]
[SourceTitle "playchess.com"]
[Source "ChessBase"]
[SourceQuality "1"]
[TimeControl "40/5400+30:1800+30"]

{[%evp 15,37,22,18,5,13,12,13,11,56,58,64,56,57,46,90,50,53,51,50,45,49,37,43,71]} 1. d4 {[%emt 0:03:02]} d5 {[%emt 0:06:07]} 2. Nf3 {[%emt 0:01:26]} Nf6 {[%emt 0:01:56]} 3. c4 {[%emt 0:00:43]} e6 {[%emt 0:00:07]} 4. g3 {[%emt 0:01:27]} Be7 {[%emt 0:03:47]} 5. Bg2 {[%emt 0:00:45]} O-O {[%emt 0:00:06]} 6. O-O {[%emt 0:00:17]} c6 {[%emt 0:00:15]} 7. Qc2 {[%emt 0:02:21]} b6 {[%emt 0:02:10]} 8. b3 {[%emt 0:01:42]} Nbd7 {[%emt 0:00:18]} 9. Bb2 {[%emt 0:00:33]} Bb7 {[%emt 0:01:09]} 10. Rd1 {[%emt 0:02:05]} Rc8 {[%emt 0:03:59]} 11. Ne5 {[%emt 0:08:13] The position is equal.} b5 {[%emt 0:06:42]} 12. c5 {[%emt 0:12:52]} a5 {[%emt 0:15:05]} 13. Nd3 {[%emt 0:17:42] White is much more active.} Ng4 {[%emt 0:24:21][%cal Bf6g4,Bg4h6,Bh6f7][%mdl 32]} 14. Nd2 {[%emt 0:02:32][%cal Bb1d2,Bd2f3,Bf3e5,Be5d7][%mdl 32]} f5 {[%emt 0:05:13]} 15. Nf3 {[%emt 0:06:19]} Qe8 {[%emt 0:03:12] White is slightly better.} 16. h3 {[%emt 0:07:12]} Nh6 {[%emt 0:00:10]} 17. Qd2 {[%emt 0:01:25]} Bd8 {[%emt 0:02:48]} 18. Nfe5 {[%emt 0:16:58]} Nf7 {[%emt 0:07:07]} 19. Nxd7 {[%emt 0:00:53] Weighted Error Value: White=0.07 (flawless) /Black=0.08 (flawless) .  Inaccurate:     	White=1     	Black=2      OK:         	White=5     	Black=8} 1/2-1/2